bitfinex/quotes_SOLUSD_20240826
["timestamp","ask_amount","ask_price","bid_price","bid_amount"]
[1724654884009,1.34378841,159.86,159.8,6.65345268]
[1724654884202,1.34378841,159.86,159.81,2.81943186]
[1724654884532,1.34378841,159.86,159.79,15.6117]
[1724654884714,1.34378841,159.86,159.8,5.086814]
[1724654884899,1.34378841,159.86,159.81,2.81940043]
[1724654885202,1.34378841,159.86,159.79,15.6117]
[1724654885401,1.34378841,159.86,159.8,6.65317336]
[1724654885614,1.34378841,159.86,159.79,15.6117]
[1724654885615,1.34378841,159.86,159.81,2.8193997]
[1724654885813,15.89849382,159.87,159.79,15.6117]
[1724654886019,15.89849382,159.87,159.8,51.65315465]
[1724654886222,1.34378841,159.86,159.81,2.8193997]
[1724654886423,1.34378841,159.86,159.82,1.56633317]
[1724654886622,1.34378841,159.86,159.8,45.0]
[1724654886822,1.34378841,159.86,159.81,2.81940017]
[1724654887123,9.64349382,159.85,159.79,15.6117]
[1724654887325,1.34378841,159.84,159.8,2.81959328]
[1724654887527,1.34378841,159.84,159.79,15.6117]
[1724654887823,1.34378841,159.84,159.8,1.56644082]
[1724654888023,1.34378841,159.84,159.79,15.6117]
[1724654888207,1.34378841,159.84,159.8,2.81947879]
[1724654888407,1.34378841,159.84,159.81,1.25310159]
[1724654888609,9.64349382,159.85,159.8,3.83408823]
[1724654888826,6.2556,159.86,159.81,1.25309251]
[1724654889111,15.89859382,159.87,159.81,3.83303081]
[1724654889309,15.89859382,159.87,159.79,15.6117]
[1724654889515,15.89859382,159.87,159.8,45.0]
[1724654889925,15.89859382,159.87,159.81,1.25119521]
[1724654891910,15.89859382,159.87,159.8,45.0]
[1724654892238,15.89859382,159.87,159.81,1.25122018]
[1724654894126,15.89859382,159.87,159.8,45.0]
[1724654894127,9.64349382,159.87,159.8,45.0]
[1724654894314,1.34378841,159.86,159.8,45.0]
[1724654895221,1.34378841,159.86,159.79,15.6117]
[1724654895423,15.89859382,159.87,159.79,15.6117]
[1724654898344,15.89859382,159.87,159.8,3.83127403]
[1724654898637,15.89859382,159.87,159.79,15.6117]
[1724654898838,15.89859382,159.87,159.8,3.83211308]
[1724654899039,9.64349382,159.87,159.79,15.6117]
[1724654899335,10.98728223,159.87,159.8,48.83279752]
[1724654899534,17.24238223,159.87,159.79,15.6117]
[1724654899771,9.64349382,159.85,159.8,3.83293495]
[1724654899906,9.64349382,159.83,159.79,15.6117]
[1724654900228,1.34378841,159.82,159.79,15.6117]
[1724654900742,6.2578,159.8,159.75,22.4175255]
[1724654900939,10.98728223,159.79,159.76,3.83594041]
[1724654901227,10.98728223,159.79,159.77,3.83593907]
[1724654901430,10.98728223,159.79,159.75,6.48205874]
[1724654901618,10.98728223,159.79,159.74,6.6154]
[1724654901619,10.98728223,159.79,159.76,3.83638821]
[1724654901821,10.98728223,159.79,159.75,6.48287072]
[1724654902018,10.98728223,159.79,159.76,3.83634275]
[1724654902019,17.24578223,159.79,159.76,3.83634275]
[1724654902227,9.64349382,159.77,159.72,24.29892256]
[1724654902440,9.64349382,159.77,159.73,5.09163284]
[1724654902441,1.34378841,159.76,159.73,5.09163284]
[1724654902735,9.64349382,159.75,159.71,6.48576263]
[1724654903032,9.64349382,159.75,159.72,3.83850692]
[1724654903332,9.64349382,159.75,159.71,6.48595728]
[1724654903544,9.64349382,159.77,159.72,3.83823927]
[1724654903743,9.64349382,159.77,159.73,3.83798911]
[1724654903941,9.64349382,159.77,159.71,6.48564995]
[1724654904138,9.64349382,159.77,159.72,3.83802078]
[1724654904322,9.64349382,159.77,159.7,6.1091]
[1724654904718,9.64349382,159.77,159.71,6.48568686]
[1724654904937,9.64349382,159.77,159.72,3.83808283]
[1724654905135,9.64349382,159.77,159.71,6.48568686]
[1724654905339,9.64349382,159.77,159.72,3.83798535]
[1724654905546,9.64349382,159.77,159.7,12.59478686]
[1724654905844,9.64349382,159.77,159.71,3.83788499]
[1724654906018,9.64349382,159.77,159.72,3.83788499]
[1724654906218,9.64349382,159.77,159.71,3.8377848]
[1724654906521,9.64349382,159.77,159.7,6.1091]
[1724654906721,9.64349382,159.77,159.71,3.83758675]
[1724654906722,10.98728223,159.77,159.71,3.83758675]
[1724654906932,8.4384,159.8,159.69,6.48568686]
[1724654906933,9.64349382,159.75,159.69,6.48568686]
[1724654907129,1.34378841,159.74,159.7,3.83871252]
[1724654907324,1.34378841,159.74,159.69,3.83876052]
[1724654907552,1.34378841,159.74,159.68,15.22]
[1724654907924,1.34378841,159.74,159.69,3.83868393]
[1724654908246,1.34378841,159.74,159.69,3.83868189]
[1724654908632,10.98728223,159.75,159.69,3.83868189]
[1724654908832,7.60318841,159.76,159.69,3.83868189]
[1724654909138,9.64349382,159.77,159.7,5.09085963]
[1724654909139,15.90249382,159.77,159.7,5.09085963]
[1724654909333,15.90249382,159.77,159.7,1.25217774]
[1724654909947,45.0,159.79,159.7,3.83868189]
[1724654909948,7.60238841,159.78,159.7,3.83868189]
[1724654910136,8.4384,159.84,159.71,58.48217571]
[1724654910338,10.98728223,159.82,159.72,3.83868189]
[1724654910528,17.24458223,159.82,159.73,45.0]
[1724654910928,17.24458223,159.82,159.72,45.0]
[1724654911648,17.24458223,159.82,159.73,6.0456]
[1724654911825,15.90079382,159.82,159.73,11.13358254]
[1724654912236,1.34378841,159.81,159.73,9.8818261]
[1724654912439,17.24458223,159.82,159.73,19.52531992]
[1724654912643,17.24458223,159.82,159.73,15.68909382]
[1724654913528,17.24458223,159.82,159.73,6.0456]
[1724654913739,9.64349382,159.8,159.73,6.0456]
[1724654913927,10.98728223,159.8,159.73,6.0456]
[1724654914129,1.34378841,159.8,159.73,6.0456]
[1724654914633,31.70463487,159.8,159.7,20.0]
[1724654914833,25.44673487,159.8,159.71,3.83758067]
[1724654915032,30.36174646,159.78,159.69,16.54164623]
[1724654915247,1.34378841,159.77,159.7,3.83758067]
[1724654915457,1.34378841,159.77,159.69,10.05678067]
[1724654916650,1.34378841,159.77,159.7,3.83758067]
[1724654917536,6.2588,159.78,159.7,3.83758067]
[1724654917724,6.2588,159.78,159.69,12.70413607]
[1724654918059,7.60198841,159.79,159.7,3.83762381]
[1724654918229,7.60198841,159.79,159.71,45.0]
[1724654918864,7.60198841,159.79,159.7,45.0]
[1724654919067,7.60198841,159.79,159.71,3.83639964]
[1724654919230,6.2588,159.78,159.69,6.2192]
[1724654919563,1.34378841,159.77,159.69,10.05620661]
[1724654920128,1.34378841,159.76,159.69,10.05620661]
[1724654921167,1.34378841,159.77,159.69,10.05620661]
[1724654922358,7.60278841,159.77,159.69,10.05620661]
[1724654922556,6.259,159.77,159.69,10.05620661]
[1724654923434,1.34378841,159.76,159.69,3.83700661]
[1724654924443,1.34378841,159.76,159.68,15.22]
[1724654924852,1.34378841,159.76,159.69,3.83669157]
[1724654927586,6.259,159.77,159.69,3.83669157]
[1724654927889,6.259,159.77,159.7,1.25217585]
[1724654928274,32.54134646,159.78,159.7,1.25217585]
[1724654928451,14.6971,159.78,159.68,15.22]
[1724654928657,16.04088841,159.78,159.7,3.83647686]
[1724654929475,16.04088841,159.78,159.7,3.83601481]
[1724654930181,6.2591,159.77,159.7,3.83601481]
[1724654930389,6.2591,159.77,159.65,60.41619792]
[1724654930390,1.34378841,159.76,159.65,52.58704052]
[1724654930694,1.34378841,159.76,159.66,68.83682806]
[1724654930857,1.34378841,159.76,159.67,3.83682806]
[1724654931053,1.34378841,159.76,159.68,48.83682806]
[1724654931375,1.34378841,159.76,159.66,65.0]
[1724654931585,1.34378841,159.76,159.69,3.83684971]
[1724654931886,24.10294646,159.74,159.67,3.83684971]
[1724654932092,1.34378841,159.73,159.67,3.83684971]
[1724654932260,1.34378841,159.73,159.7,3.83684971]
[1724654932455,1.34378841,159.73,159.66,3.83684971]
[1724654932674,1.34378841,159.73,159.67,3.83684971]
[1724654932878,6.2599,159.75,159.68,3.83684971]
[1724654933058,7.60368841,159.75,159.65,22.2207]
[1724654933263,7.60368841,159.75,159.66,45.0]
[1724654934079,36.90414646,159.76,159.67,1.25230073]
[1724654934404,12.8012,159.76,159.66,45.0]
[1724654934974,6.5418,159.76,159.67,1.25218946]
[1724654935300,38.79994646,159.78,159.68,1.25212795]
[1724654935504,38.79994646,159.78,159.68,46.25212795]
[1724654936408,1.34378841,159.77,159.67,20.0]
[1724654936615,1.34378841,159.76,159.66,20.0]
[1724654937210,25.44673487,159.76,159.66,20.0]
[1724654937375,31.70643487,159.76,159.66,20.0]
[1724654937988,30.36264646,159.76,159.67,1.25229188]
[1724654938498,30.36264646,159.76,159.66,20.0]
[1724654938997,6.2591,159.77,159.66,20.0]
[1724654939174,6.2591,159.77,159.67,46.25227517]
[1724654939380,1.34378841,159.76,159.67,45.0]
[1724654939804,7.60318841,159.76,159.67,45.0]
[1724654939979,6.2594,159.76,159.66,20.0]
[1724654940180,6.2594,159.76,159.67,1.25228164]
[1724654940404,6.259,159.77,159.66,20.0]
[1724654940598,1.34378841,159.76,159.67,45.0]
[1724654941187,6.259,159.77,159.68,1.25214566]
[1724654941708,14.697,159.78,159.68,1.25214566]
[1724654942489,14.697,159.78,159.68,21.25214566]
[1724654942680,14.697,159.78,159.69,45.0]
[1724654942879,14.697,159.78,159.7,1.25198477]
[1724654943086,8.4384,159.78,159.69,45.0]
[1724654943286,8.4384,159.78,159.7,1.25214459]
[1724654944313,8.4384,159.78,159.69,1.25210283]
[1724654944618,8.4384,159.78,159.68,65.0]
[1724654944801,7.60278841,159.77,159.65,46.32364646]
[1724654944993,1.34378841,159.76,159.66,65.0]
[1724654948901,1.34378841,159.76,159.67,1.56711639]
[1724654949106,6.259,159.77,159.68,1.56711639]
[1724654949306,6.259,159.77,159.69,1.56711639]
[1724654949508,6.259,159.77,159.7,1.56711639]
[1724654949713,6.259,159.77,159.71,1.56711639]
[1724654950017,6.259,159.77,159.72,1.56711639]
[1724654950211,6.259,159.77,159.73,1.56711639]
[1724654950419,6.259,159.77,159.66,65.0]
[1724654950593,6.259,159.77,159.67,2.81934719]
[1724654950800,6.259,159.77,159.68,1.56713246]
[1724654950996,6.259,159.77,159.69,2.81934636]
[1724654951197,6.259,159.77,159.7,1.56713246]
[1724654951396,6.259,159.77,159.71,1.56713246]
[1724654951592,6.259,159.77,159.72,1.56713246]
[1724654951814,6.259,159.77,159.73,1.56713246]
[1724654952016,15.90503497,159.77,159.67,10.89824893]
[1724654952199,15.90503497,159.77,159.68,1.56713387]
[1724654952402,15.90503497,159.77,159.69,1.56713387]
[1724654952603,15.90503497,159.77,159.67,10.89824893]
[1724654952604,15.90503497,159.77,159.7,1.56713387]
[1724654952805,15.90503497,159.77,159.71,1.56713387]
[1724654953005,1.34378841,159.76,159.72,1.56713387]
[1724654953205,1.34378841,159.76,159.73,1.56713387]
[1724654953400,1.34378841,159.76,159.67,9.64603497]
[1724654953605,1.34378841,159.76,159.68,1.56712962]
[1724654953822,1.34378841,159.76,159.69,1.56712962]
[1724654954031,1.34378841,159.76,159.7,1.56712962]
[1724654954212,1.34378841,159.76,159.71,1.56712962]
[1724654954410,1.34378841,159.76,159.72,1.56712962]
[1724654954606,15.90503497,159.77,159.73,1.56712962]
[1724654954808,1.34378841,159.76,159.67,9.64603497]
[1724654955024,14.697,159.78,159.68,47.81932736]
[1724654955331,8.4384,159.78,159.69,9.64603497]
[1724654955503,8.4384,159.78,159.7,1.25199618]
[1724654955705,14.697,159.78,159.69,1.56711505]
[1724654955920,14.697,159.78,159.7,1.56711505]
[1724654956235,14.697,159.78,159.71,2.81916691]
[1724654956527,8.4384,159.78,159.72,1.56711505]
[1724654956823,8.4384,159.78,159.73,1.56711505]
[1724654957038,8.4384,159.78,159.74,1.56711505]
[1724654957209,8.4384,159.78,159.71,1.25205186]
[1724654957405,10.98982338,159.77,159.72,1.56708732]
[1724654957622,10.98982338,159.77,159.73,1.56708732]
[1724654957930,10.98982338,159.77,159.74,1.56708732]
[1724654958096,10.98982338,159.77,159.66,29.64603497]
[1724654958300,9.64603497,159.77,159.67,47.81927251]
[1724654958496,9.64603497,159.77,159.68,11.21313406]
[1724654958700,9.64603497,159.77,159.69,2.81925352]
[1724654958902,9.64603497,159.77,159.7,1.56709909]
[1724654959130,9.64603497,159.77,159.71,2.81924706]
[1724654959330,9.64603497,159.77,159.72,1.56709909]
[1724654959542,9.64603497,159.77,159.73,1.56709909]
[1724654959846,9.64603497,159.77,159.74,1.56709909]
[1724654960013,9.64603497,159.77,159.71,1.25214797]
[1724654960217,9.64603497,159.77,159.72,1.56707662]
[1724654960424,9.64603497,159.77,159.73,1.56707662]
[1724654960618,9.64603497,159.77,159.74,1.56707662]
[1724654960819,9.64603497,159.77,159.69,1.25205871]
[1724654960820,9.64603497,159.77,159.75,1.56707662]
[1724654961022,9.64603497,159.77,159.69,1.25205871]
[1724654961218,15.90503497,159.77,159.7,1.56709641]
[1724654961426,1.34378841,159.76,159.67,9.64603497]
[1724654961632,1.34378841,159.76,159.71,1.56709939]
[1724654961837,1.34378841,159.76,159.72,1.56709939]
[1724654962006,1.34378841,159.76,159.73,1.56709939]
[1724654962339,1.34378841,159.76,159.74,1.56709939]
[1724654962528,1.34378841,159.76,159.68,20.0]
[1724654962834,1.34378841,159.76,159.69,2.82085603]
[1724654963146,9.64603497,159.75,159.7,2.82085603]
[1724654963437,9.64603497,159.75,159.71,2.82085603]
[1724654963655,9.64603497,159.75,159.72,2.82085603]
[1724654963852,9.64603497,159.75,159.73,2.82085603]
[1724654964160,9.64603497,159.75,159.74,1.5671417]
[1724654964462,6.2573,159.82,159.74,2.82052013]
[1724654964754,6.2573,159.82,159.75,2.82052013]
[1724654964958,6.2573,159.82,159.76,2.82052013]
[1724654965139,6.2573,159.82,159.77,2.82052013]
[1724654965317,6.2573,159.82,159.78,2.82025677]
[1724654965521,6.2573,159.82,159.71,9.64603497]
[1724654965754,10.98982338,159.81,159.72,2.82012642]
[1724654965946,10.98982338,159.81,159.73,2.82012642]
[1724654966123,10.98982338,159.81,159.74,2.82012642]
[1724654966323,10.98982338,159.81,159.71,9.64603497]
[1724654966324,10.98982338,159.81,159.75,2.82012642]
[1724654966553,10.98982338,159.81,159.76,2.82012642]
[1724654966742,10.98982338,159.81,159.77,1.5667369]
[1724654966947,10.98982338,159.81,159.69,9.64603497]
[1724654967127,10.98982338,159.81,159.7,67.82029157]
[1724654967330,10.98982338,159.81,159.71,2.82029157]
[1724654967538,10.98982338,159.81,159.72,2.82029157]
[1724654967733,10.98982338,159.81,159.73,2.82029157]
[1724654967934,9.64603497,159.82,159.74,2.82029157]
[1724654968164,9.64603497,159.82,159.75,2.82019653]
[1724654968383,8.4384,159.85,159.76,2.81855065]
[1724654968655,8.4384,159.85,159.77,1.56677585]
[1724654968852,8.4384,159.85,159.78,2.8182002]
[1724654969057,8.4384,159.85,159.79,1.56677585]
[1724654969228,8.4384,159.85,159.8,1.56677585]
[1724654969434,8.4384,159.85,159.77,45.0]
[1724654969739,10.98982338,159.84,159.78,1.56635619]
[1724654969928,10.98982338,159.84,159.79,1.56635619]
[1724654970128,1.34378841,159.84,159.74,6.3151]
[1724654970451,1.34378841,159.84,159.75,21.56650728]
[1724654970660,1.34378841,159.84,159.76,1.56650728]
[1724654970826,1.34378841,159.84,159.75,20.0]
[1724654971033,1.34378841,159.84,159.76,1.56657066]
[1724654971260,25.43583549,159.84,159.77,1.56657066]
[1724654971557,6.2567,159.83,159.7,30.18264708]
[1724654971763,24.09204708,159.82,159.74,1.56671533]
[1724654972056,24.09204708,159.8,159.7,6.0906]
[1724654972236,9.78218841,159.79,159.71,1.56687431]
[1724654972556,16.04038841,159.79,159.72,1.56687431]
[1724654972855,16.04038841,159.79,159.73,1.56687431]
[1724654973028,16.04038841,159.79,159.74,1.56687431]
[1724654973370,14.6966,159.79,159.69,16.217]
[1724654973543,6.2595,159.76,159.7,1.56689827]
[1724654973852,1.34378841,159.75,159.71,1.56689827]
[1724654974055,1.34378841,159.75,159.69,16.217]
[1724654974056,6.259,159.77,159.72,1.56689827]
[1724654974252,6.259,159.77,159.73,1.56689827]
[1724654974550,24.09204708,159.78,159.7,1.25216809]
[1724654974750,30.35074708,159.78,159.71,1.56711117]
[1724654974925,30.35074708,159.78,159.72,1.56711117]
[1724654975123,30.35074708,159.78,159.7,1.25216809]
[1724654975322,30.35074708,159.78,159.71,1.56709514]
[1724654975527,1.34378841,159.77,159.72,1.56709514]
[1724654975759,1.34378841,159.76,159.69,16.217]
[1724654975952,30.35074708,159.78,159.7,2.81933954]
[1724654976152,30.35074708,159.78,159.71,1.56712191]
[1724654976336,24.09204708,159.78,159.72,1.56712191]
[1724654976658,24.09204708,159.78,159.69,17.46921311]
[1724654976961,7.60278841,159.77,159.7,1.56713225]
[1724654977125,1.34378841,159.76,159.71,1.56713225]
[1724654977331,1.34378841,159.76,159.67,20.0]
[1724654977557,1.34378841,159.76,159.68,1.56713608]
[1724654977757,1.34378841,159.76,159.67,28.34216031]
[1724654977953,1.34378841,159.76,159.68,1.56714132]
[1724654978152,1.34378841,159.76,159.67,20.0]
[1724654979943,7.60318841,159.76,159.66,6.1077]
[1724654980242,6.2621,159.69,159.62,6.5554]
[1724654980447,1.34378841,159.68,159.62,6.5554]
[1724654981471,1.34378841,159.67,159.61,15.528]
[1724654982433,1.34378841,159.67,159.63,6.2644]
[1724654982859,1.34378841,159.67,159.64,6.264]
[1724654983066,6.2613,159.71,159.65,6.2636]
[1724654983230,6.2613,159.71,159.61,15.528]
[1724654983544,1.34378841,159.7,159.64,6.264]
[1724654984257,6.2622,159.69,159.62,6.2645]
[1724654984432,25.43583549,159.68,159.62,6.2645]
[1724654984635,1.34378841,159.67,159.62,6.2645]
[1724654986856,1.34378841,159.67,159.61,6.2651]
[1724654988454,7.60668841,159.67,159.61,6.2651]
[1724654988963,1.34378841,159.67,159.61,6.2651]
[1724654993063,7.60668841,159.67,159.61,6.2651]
[1724654994068,7.60668841,159.67,159.57,21.0945]
[1724654994069,38.79384708,159.66,159.59,6.2657]
[1724654994276,1.34378841,159.65,159.59,6.2657]
[1724654994450,38.79384708,159.66,159.59,6.2657]
[1724654994451,1.34378841,159.64,159.59,6.2657]
[1724654995344,1.34378841,159.63,159.59,6.2657]
[1724654996470,1.34378841,159.64,159.59,6.2657]
[1724654996972,31.69993549,159.64,159.57,21.3244]
[1724654997677,31.69993549,159.64,159.58,6.2663]
[1724654998468,31.69993549,159.64,159.57,6.2667]
[1724655000161,7.60828841,159.63,159.57,6.2667]
[1724655000660,7.60828841,159.63,159.56,6.2671]
[1724655001559,6.2672,159.56,159.49,6.2697]
[1724655001767,1.34378841,159.55,159.51,6.2691]
[1724655001966,9.66917918,159.57,159.49,1.25369757]
[1724655002162,11.01296759,159.59,159.49,9.66917918]
[1724655002376,1.34378841,159.58,159.52,6.2687]
[1724655002884,11.01296759,159.57,159.5,6.2692]
[1724655003186,11.01296759,159.57,159.51,6.269]
[1724655003480,11.01296759,159.57,159.52,6.2686]
[1724655003686,9.66917918,159.57,159.52,6.2686]
[1724655004081,25.51609106,159.59,159.52,6.2686]
[1724655004263,31.78219106,159.59,159.52,6.2686]
[1724655004663,24.17230265,159.57,159.51,6.2691]
[1724655004858,1.34378841,159.56,159.51,6.2691]
[1724655007166,7.61098841,159.56,159.49,6.2696]
[1724655007686,30.43990265,159.55,159.48,15.1374]
[1724655007859,1.34378841,159.54,159.44,22.5708]
[1724655008666,7.61188841,159.54,159.47,6.2707]
[1724655009465,6.2688,159.52,159.45,6.2715]
[1724655009768,1.34378841,159.51,159.45,6.2715]
[1724655010399,1.34378841,159.51,159.46,6.2711]
[1724655011690,25.51609106,159.51,159.46,6.2711]
[1724655012565,25.51609106,159.51,159.45,6.2715]
[1724655012778,45.0,159.5,159.43,6.272]
[1724655013088,45.0,159.5,159.42,6.2727]
[1724655013089,25.51609106,159.49,159.42,6.2727]
[1724655013383,39.90881914,159.54,159.41,0.8266596]
[1724655013384,30.44300265,159.47,159.41,0.8266596]
[1724655013685,1.34378841,159.46,159.41,0.8266596]
[1724655013867,1.34378841,159.45,159.41,7.0996596]
[1724655014282,1.34378841,159.47,159.41,7.0996596]
[1724655015487,25.51609106,159.47,159.41,0.8266596]
[1724655015790,1.34378841,159.47,159.42,6.2726]
[1724655016488,14.7088,159.48,159.42,6.2726]
[1724655016671,6.2708,159.47,159.41,7.0997596]
[1724655016877,6.2715,159.45,159.41,0.8266596]
[1724655017080,1.34378841,159.44,159.41,0.8266596]
[1724655018089,1.34378841,159.43,159.41,0.8266596]
[1724655018462,1.34378841,159.42,159.41,0.8266596]
[1724655018666,30.44380265,159.45,159.41,0.8266596]
[1724655018893,24.17230265,159.45,159.41,0.8266596]
[1724655019095,6.2723,159.43,159.41,0.8266596]
[1724655019477,30.44400265,159.45,159.41,0.8266596]
[1724655019777,52.61588841,159.44,159.41,0.8266596]
[1724655021288,50.44450265,159.43,159.35,6.2752]
[1724655021497,50.44450265,159.43,159.28,30.70450094]
[1724655021498,1.34378841,159.42,159.36,6.2747]
[1724655022989,26.2724,159.43,159.36,6.2747]
[1724655023294,6.272,159.44,159.37,6.2746]
[1724655024591,30.44260265,159.49,159.42,6.2726]
[1724655024899,7.61448841,159.48,159.4,6.2731]
[1724655025272,7.61448841,159.48,159.41,6.2731]
[1724655025678,6.2708,159.47,159.41,6.2731]
[1724655025872,1.34378841,159.46,159.41,6.2731]
[1724655026072,1.34378841,159.45,159.41,6.2731]
[1724655028497,6.2704,159.48,159.41,6.2731]
[1724655028792,6.2708,159.47,159.36,24.17230265]
[1724655029095,30.44260265,159.49,159.42,6.2727]
[1724655029281,26.2706,159.48,159.38,22.741]
[1724655030003,6.2709,159.47,159.39,1.25456969]
[1724655030775,20.0,159.48,159.42,6.2727]
[1724655031090,30.44260265,159.49,159.42,6.2727]
[1724655031893,7.61418841,159.48,159.42,6.2727]
[1724655032104,17.29538292,159.48,159.42,6.2727]
[1724655032700,6.2709,159.47,159.39,1.2545288]
[1724655032890,1.34378841,159.46,159.38,22.741]
[1724655033198,1.34378841,159.45,159.38,22.741]
[1724655033403,1.34378841,159.45,159.38,29.0151]
[1724655033782,7.61538841,159.45,159.39,6.2737]
[1724655034178,15.95309451,159.44,159.38,29.0153]
[1724655034501,1.34378841,159.43,159.38,22.6043]
[1724655034684,1.34378841,159.42,159.38,22.6043]
[1724655035384,1.34378841,159.42,159.38,16.33]
[1724655036893,34.4851,159.49,159.38,16.33]
[1724655036894,15.6751,159.49,159.38,17.58488615]
[1724655037094,9.68119451,159.46,159.38,16.33]
[1724655037286,15.95309451,159.44,159.38,16.33]
[1724655037602,1.34378841,159.43,159.38,16.33]
[1724655037780,1.34378841,159.43,159.38,22.6043]
[1724655038188,7.61608841,159.43,159.38,16.33]
[1724655038906,9.68119451,159.42,159.37,6.2746]
[1724655039103,1.34378841,159.41,159.37,6.2746]
[1724655039714,11.02498292,159.4,159.34,15.5769]
[1724655039891,9.68119451,159.36,159.3,15.5769]
[1724655040089,6.2759,159.34,159.3,15.5769]
[1724655040285,1.34378841,159.33,159.3,15.5769]
[1724655040809,9.68119451,159.32,159.27,6.0191]
[1724655041013,9.68119451,159.32,159.27,12.2974]
[1724655041181,11.02498292,159.32,159.27,12.2974]
[1724655041386,9.68119451,159.36,159.27,6.0191]
[1724655041696,1.34378841,159.35,159.3,6.2773]
[1724655042310,25.58414262,159.35,159.29,6.2777]
[1724655042693,24.24035421,159.33,159.27,12.2974]
[1724655042897,1.34378841,159.32,159.28,6.2782]
[1724655043241,7.6118,159.42,159.27,6.0191]
[1724655043428,24.24035421,159.35,159.27,7.27586057]
[1724655043716,24.24035421,159.35,159.3,6.2774]
[1724655044115,1.34378841,159.34,159.3,6.2774]
[1724655044492,30.51505421,159.37,159.3,6.2774]
[1724655044696,1.34378841,159.36,159.3,6.2774]
[1724655044897,1.34378841,159.35,159.3,6.2774]
[1724655045124,24.24035421,159.39,159.33,6.2761]
[1724655045303,24.24035421,159.39,159.27,6.0191]
[1724655045304,24.24035421,159.39,159.32,6.2764]
[1724655045620,1.34378841,159.38,159.32,6.2764]
[1724655045915,24.24035421,159.37,159.32,6.2765]
[1724655046122,1.34378841,159.37,159.33,6.2762]
[1724655046691,1.34378841,159.37,159.28,1.25681984]
[1724655046998,1.34378841,159.37,159.28,45.0]
[1724655047414,24.24035421,159.4,159.34,6.2758]
[1724655047622,1.34378841,159.38,159.32,6.2762]
[1724655048117,25.58414262,159.38,159.28,45.0]
[1724655048300,6.2748,159.37,159.3,6.2774]
[1724655048501,31.85924262,159.36,159.3,6.2774]
[1724655048699,30.51545421,159.36,159.3,6.2774]
[1724655049017,24.24035421,159.36,159.3,6.2774]
[1724655050116,24.24035421,159.36,159.31,6.2767]
[1724655050413,24.24035421,159.4,159.34,6.2758]
[1724655050794,30.51385421,159.4,159.3,1.25528033]
[1724655050992,1.34378841,159.39,159.28,1.25683524]
[1724655051209,24.24035421,159.38,159.3,6.2774]
[1724655051394,7.61848841,159.37,159.31,6.277]
[1724655051594,24.24035421,159.36,159.31,6.277]
[1724655052317,7.61848841,159.37,159.31,6.277]
[1724655052318,6.2747,159.37,159.31,6.277]
[1724655052702,1.34378841,159.36,159.31,6.277]
[1724655053230,31.85944262,159.36,159.3,6.2774]
[1724655053400,31.85944262,159.36,159.27,6.0191]
[1724655053401,6.2755,159.35,159.27,6.0191]
[1724655053716,24.24035421,159.34,159.27,7.27603481]
[1724655053899,1.34378841,159.33,159.27,13.55463481]
[1724655054098,1.34378841,159.32,159.27,12.2977]
[1724655054507,1.34378841,159.32,159.27,6.2786]
[1724655054709,25.58414262,159.32,159.26,21.3181]
[1724655056013,31.86084262,159.32,159.26,15.0391]
[1724655056401,30.51705421,159.32,159.26,15.0391]
[1724655056599,1.34378841,159.31,159.26,15.0391]
[1724655057101,1.34378841,159.31,159.25,7.1056596]
[1724655057300,1.34378841,159.3,159.26,6.2788]
[1724655057500,30.51705421,159.32,159.25,0.8266596]
[1724655057501,1.34378841,159.29,159.25,0.8266596]
[1724655057706,30.51865421,159.28,159.25,0.8266596]
[1724655057919,24.24035421,159.26,159.17,6.2822]
[1724655058122,1.34378841,159.25,159.13,8.7132656]
[1724655058315,1.34378841,159.25,159.12,10.38962145]
[1724655058316,6.2811,159.21,159.12,10.38962145]
[1724655058527,1.34378841,159.2,159.12,1.25805519]
[1724655058698,21.34378841,159.2,159.11,1.25805519]
[1724655058895,1.34378841,159.2,159.11,1.25811497]
[1724655059200,24.24035421,159.22,159.1,16.5037]
[1724655059405,24.24035421,159.18,159.1,16.5037]
[1724655059608,24.24035421,159.11,159.09,0.8266596]
[1724655059820,21.34378841,159.1,159.09,0.8266596]
[1724655060018,66.34378841,159.1,159.09,0.8266596]
[1724655060310,24.24035421,159.1,159.09,0.8266596]
[1724655060518,45.0,159.1,159.09,0.8266596]
[1724655060718,66.34378841,159.1,159.09,0.8266596]
[1724655060907,90.58414262,159.1,159.09,0.8266596]
[1724655061634,8.00914648,159.15,159.09,0.8266596]
[1724655061800,24.24035421,159.19,159.09,7.1120596]